fUST/lending_fUST_20250208
["ID","MTS","AMOUNT","RATE_DAILY","PERIOD"]
[352185423,1738981856552,-503.4192844,0.00011506,2]
[352185424,1738981856562,-500.0,0.00011506,2]
[352185425,1738981856572,-151.0,0.00011506,2]
[352185426,1738981856581,-151.0,0.00011506,2]
[352185427,1738981856591,-151.0,0.00011506,2]
[352185428,1738981856601,-343.268662,0.00011506,2]
[352185429,1738981856610,-343.268662,0.00011506,2]
[352185430,1738981856621,-228.96689035,0.00011506,2]
[352185431,1738981856631,-500.0,0.00011506,2]
[352185432,1738981856640,-151.0,0.00011506,2]
[352185433,1738981856650,-403.92117771,0.00011506,2]
[352185434,1738981856661,-500.0,0.00011506,2]
[352185435,1738981856671,-500.0,0.00011506,2]
[352185436,1738981856681,-164.1138635,0.00011506,2]
[352185437,1738981856690,-281.264033,0.00011506,2]
[352185438,1738981856700,-281.264033,0.00011506,2]
[352185439,1738981856710,-522.38084674,0.00011506,2]
[352185440,1738981856722,-583.38473543,0.00011506,2]
[352185441,1738981856732,-151.0,0.00011506,2]
[352185442,1738981856742,-500.0,0.00011506,2]
[352185443,1738981856751,-754.59,0.00011506,2]
[352185444,1738981856762,-500.0,0.00011506,2]
[352185445,1738981856772,-500.0,0.00011506,2]
[352185446,1738981856782,-611.66788219,0.00011506,2]
[352185447,1738981856793,-502.57529349,0.00011506,2]
[352185448,1738981856803,-504.01895371,0.00011506,2]
[352185449,1738981856813,-417.01022832,0.00011506,2]
[352185450,1738981856822,-504.47256772,0.00011506,2]
[352185451,1738981856832,-500.0,0.00011506,2]
[352185452,1738981856841,-945.58,0.00011506,2]
[352185453,1738981856851,-500.0,0.00011506,2]
[352185454,1738981856860,-500.0,0.00011506,2]
[352185455,1738981856870,-500.0,0.00011506,2]
[352185456,1738981856879,-500.0,0.00011506,2]
[352185457,1738981856889,-504.17908507,0.00011506,2]
[352185458,1738981856899,-603.20905896,0.00011506,2]
[352185459,1738981856909,-500.0,0.00011506,2]
[352185460,1738981856919,-570.99,0.00011506,2]
[352185461,1738981856929,-500.0,0.00011506,2]
[352185462,1738981856938,-504.07738757,0.00011506,2]
[352185463,1738981856948,-500.0,0.00011506,2]
[352185464,1738981856958,-500.0,0.00011506,2]
[352185465,1738981856967,-151.0,0.00011506,2]
[352185466,1738981856977,-500.0,0.00011506,2]
[352185467,1738981856987,-244.79035906,0.00011506,2]
[352185468,1738981856996,-395.97610449,0.00011506,2]
[352185469,1738981857006,-500.0,0.00011506,2]
[352185470,1738981857016,-500.0,0.00011506,2]
[352185471,1738981857025,-363.19377305,0.00011506,2]
[352185472,1738981857035,-506.09931562,0.00011506,2]
[352185473,1738981857045,-500.0,0.00011506,2]
[352185474,1738981857054,-1177.68,0.00011506,2]
[352185475,1738981857065,-502.61298474,0.00011506,2]
[352185476,1738981857075,-500.0,0.00011506,2]
[352185477,1738981857084,-882.57,0.00011506,2]
[352185478,1738981857094,-1199.43,0.00011506,2]
[352185479,1738981857104,-500.0,0.00011506,2]
[352185480,1738981857113,-151.0,0.00011506,2]
[352185481,1738981857123,-502.6377895,0.00011506,2]
[352185482,1738981857132,-502.59886123,0.00011506,2]
[352185483,1738981857141,-500.0,0.00011506,2]
[352185484,1738981857151,-502.71538925,0.00011506,2]
[352185485,1738981857161,-544.89,0.00011506,2]
[352185486,1738981857171,-500.0,0.00011506,2]
[352185487,1738981857180,-500.0,0.00011506,2]
[352185488,1738981857193,-1101.02,0.00011506,2]
[352185489,1738981857203,-500.0,0.00011506,2]
[352185490,1738981857213,-500.0,0.00011506,2]
[352185491,1738981857223,-500.0,0.00011506,2]
[352185492,1738981857233,-202.21366367,0.00011506,2]
[352185493,1738981857243,-545.98168565,0.00011506,2]
[352185494,1738981857253,-796.16,0.00011506,2]
[352185495,1738981857263,-194.75210441,0.00011506,2]
[352185496,1738981857273,-500.0,0.00011506,2]
[352185497,1738981857283,-572.53,0.00011506,2]
[352185498,1738981857292,-500.0,0.00011506,2]
[352185499,1738981857302,-1121.59,0.00011506,2]
[352185500,1738981857311,-509.57,0.00011506,2]
[352185501,1738981857321,-2492.22,0.00011506,2]
[352185502,1738981857331,-1093.31,0.00011506,2]
[352185503,1738981857340,-2453.48,0.00011506,2]
[352185504,1738981857350,-1218.78,0.00011506,2]
[352185505,1738981857360,-501.13,0.00011506,2]
[352185506,1738981857369,-760.55,0.00011506,2]
[352185507,1738981857379,-500.0,0.00011506,2]
[352185508,1738981857388,-500.0,0.00011506,2]
[352185509,1738981857398,-500.0,0.00011506,2]
[352185510,1738981857408,-1152.58,0.00011506,2]
[352185511,1738981857418,-915.7,0.00011506,2]
[352185512,1738981857427,-1055.47,0.00011506,2]
[352185513,1738981857437,-500.0,0.00011506,2]
[352185514,1738981857446,-2638.24,0.00011506,2]
[352185515,1738981857456,-3414.38,0.00011506,2]
[352185516,1738981857465,-11361.05,0.00011506,2]
[352185517,1738981857475,-1297.56,0.00011506,2]
[352185518,1738981857485,-500.0,0.00011506,2]
[352185519,1738981857494,-160.145351,0.00011506,2]
[352185520,1738981857504,-17281.0856018,0.00011506,2]
[352185521,1738981858274,-10771.24,0.00011369,2]
[352185522,1738981858283,-16754.7843982,0.00011506,2]
[352185523,1738981858293,-160.145351,0.00011506,2]
[352185524,1738981858302,-1729.3,0.00011506,2]
[352185525,1738981858312,-508.85482553,0.00011506,2]
[352185526,1738981858322,-500.0,0.00011506,2]
[352185527,1738981858332,-1277.09,0.00011506,2]
[352185528,1738981858341,-1274.52,0.00011506,2]
[352185529,1738981858349,-500.0,0.00011506,2]
[352185530,1738981858359,-551.8213445,0.00011506,2]
[352185531,1738981858579,-5051.39,0.00010959,2]
[352185532,1738981858589,-187.6386555,0.00011506,2]
[352185533,1738981858598,-151.0,0.00011506,2]
[352185534,1738981858607,-651.14,0.00011506,2]
[352185535,1738981858617,-18.0358085,0.00011506,2]
[352185537,1738982937446,-1220.87330778,0.00019472,30]
[352185538,1738982937471,-3163.90444675,0.00019472,30]
[352185539,1738982937495,-237.97524683,0.00019472,30]
[352185540,1738982937520,-1813.77644253,0.00019472,30]
[352185541,1738982937545,-145678.08373261,0.00019472,61]
[352185542,1738982937572,-2638157.91185053,0.00019472,61]
[352185543,1738982937597,-2180032.93596986,0.00019472,61]
[352185544,1738982937623,-529694.53900311,0.00019472,61]
[352185545,1738983026156,-736054.50338874,0.00019481,61]
[352185546,1738983026181,-771845.91971734,0.00019481,61]
[352185547,1738983026207,-963.11652884,0.00019481,30]
[352185548,1738983026233,-321653.93892426,0.00019481,61]
[352185549,1738983026258,-1502815.52144082,0.00019481,61]
[352185574,1738983031930,-1972.8052649,0.00010012,2]
[352185575,1738983031940,-300.0,0.00010856,2]
[352185576,1738983031950,-500.0,0.00010857,2]
[352185577,1738983031960,-500.0,0.00010857,2]
[352185578,1738983031971,-240.48219522,0.00010857,2]
[352185579,1738983031980,-500.0,0.00010857,2]
[352185580,1738983031989,-500.0,0.00010857,2]
[352185581,1738983031998,-500.0,0.00010857,2]
[352185582,1738983032008,-500.0,0.00010857,2]
[352185583,1738983032017,-353.9017727,0.00010857,2]
[352185584,1738983032026,-500.0,0.00010857,2]
[352185585,1738983032035,-385.68536795,0.00010857,2]
[352185587,1738983032045,-500.0,0.00010857,2]
[352185589,1738983032054,-197.61003526,0.00010858,2]
[352185591,1738983032063,-38032.19652877,0.00010858,2]
[352185592,1738983032072,-505.58736495,0.00010957,2]
[352185593,1738983032082,-501.18232424,0.00010958,2]
[352185594,1738983032091,-500.42996494,0.00010958,2]
[352185595,1738983032101,-501.42280111,0.00010958,2]
[352185596,1738983032111,-383.02853692,0.00010958,2]
[352185597,1738983032122,-504.77411914,0.00010958,2]
[352185598,1738983032131,-500.0,0.00010958,2]
[352185599,1738983032141,-498.70071267,0.00010958,2]
[352185600,1738983032152,-501.10727482,0.00010958,2]
[352185601,1738983032162,-164.1138635,0.00010958,2]
[352185602,1738983032171,-500.0,0.00010958,2]
[352185603,1738983032183,-502.87430555,0.00010958,2]
[352185604,1738983032195,-500.0,0.00010958,2]
[352185605,1738983032206,-500.86823899,0.00010958,2]
[352185606,1738983032214,-500.0,0.00010958,2]
[352185607,1738983032224,-506.80945875,0.00010958,2]
[352185608,1738983032234,-502.79603949,0.00010958,2]
[352185609,1738983032243,-500.0,0.00010958,2]
[352185610,1738983032252,-500.0,0.00010958,2]
[352185611,1738983032261,-500.0,0.00010958,2]
[352185612,1738983032272,-500.0,0.00010958,2]
[352185613,1738983032282,-502.82918451,0.00010958,2]
[352185614,1738983032290,-500.0,0.00010958,2]
[352185615,1738983032299,-500.0,0.00010958,2]
[352185616,1738983032309,-500.0,0.00010958,2]
[352185617,1738983032318,-500.7402686,0.00010958,2]
[352185618,1738983032327,-500.0,0.00010958,2]
[352185619,1738983032338,-537.85171496,0.00010958,2]
[352185620,1738983032347,-454.97614596,0.00010958,2]
[352185621,1738983032356,-500.0,0.00010958,2]
[352185622,1738983032365,-500.0,0.00010958,2]
[352185623,1738983032375,-500.0,0.00010958,2]
[352185624,1738983032384,-500.85341656,0.00010958,2]
[352185625,1738983032394,-500.0,0.00010958,2]
[352185626,1738983032403,-501.68774286,0.00010958,2]
[352185627,1738983032413,-500.0,0.00010958,2]
[352185628,1738983032422,-500.0,0.00010958,2]
[352185629,1738983032431,-503.67107063,0.00010958,2]
[352185630,1738983032441,-500.0,0.00010958,2]
[352185631,1738983032451,-500.0,0.00010958,2]
[352185632,1738983032461,-500.0,0.00010958,2]
[352185633,1738983032471,-505.85882591,0.00010958,2]
[352185634,1738983032481,-413.12929157,0.00010958,2]
[352185635,1738983032490,-501.19242216,0.00010958,2]
[352185636,1738983032499,-496.35165081,0.00010958,2]
[352185637,1738983032508,-500.0,0.00010958,2]
[352185638,1738983032518,-500.0,0.00010958,2]
[352185639,1738983032529,-501.6339645,0.00010958,2]
[352185640,1738983032539,-500.0,0.00010958,2]
[352185641,1738983032548,-500.0,0.00010958,2]
[352185642,1738983032557,-500.0,0.00010958,2]
[352185643,1738983032567,-500.0,0.00010958,2]
[352185644,1738983032575,-500.0,0.00010958,2]
[352185645,1738983032746,-500.0,0.00010958,2]
[352185646,1738983032757,-500.0,0.00010958,2]
[352185647,1738983032766,-504.73905057,0.00010958,2]
[352185648,1738983032775,-500.0,0.00010958,2]
[352185649,1738983032786,-500.0,0.00010958,2]
[352185650,1738983032795,-504.35124804,0.00010958,2]
[352185651,1738983032804,-505.53541504,0.00010958,2]
[352185652,1738983032814,-500.0,0.00010958,2]
[352185653,1738983032824,-500.0,0.00010958,2]
[352185654,1738983032833,-505.11009314,0.00010958,2]
[352185655,1738983032843,-500.0,0.00010958,2]
[352185656,1738983032852,-509.37019453,0.00010958,2]
[352185657,1738983032862,-503.53245811,0.00010958,2]
[352185658,1738983032871,-510.9359342,0.00010958,2]
[352185659,1738983032880,-500.0,0.00010958,2]
[352185660,1738983032890,-500.0,0.00010958,2]
[352185661,1738983032899,-515.27093133,0.00010958,2]
[352185662,1738983032908,-500.0,0.00010958,2]
[352185663,1738983032918,-500.0,0.00010958,2]
[352185664,1738983032930,-503.77414422,0.00010958,2]
[352185665,1738983032939,-500.0,0.00010958,2]
[352185666,1738983032949,-500.0,0.00010958,2]
[352185667,1738983032960,-500.0,0.00010958,2]
[352185668,1738983032969,-500.0,0.00010958,2]
[352185669,1738983032978,-238.68408388,0.00010958,2]
[352185670,1738983032988,-502.51498375,0.00010958,2]
[352185671,1738983032999,-500.0,0.00010958,2]
[352185672,1738983033008,-500.0,0.00010958,2]
[352185673,1738983033018,-501.66284848,0.00010958,2]
[352185674,1738983033028,-500.0,0.00010958,2]
[352185675,1738983033038,-501.67826355,0.00010958,2]
[352185676,1738983033047,-500.0,0.00010958,2]
[352185677,1738983033056,-500.0,0.00010958,2]
[352185678,1738983033065,-503.54705599,0.00010958,2]
[352185679,1738983033075,-500.0,0.00010958,2]
[352185680,1738983033084,-500.0,0.00010958,2]
[352185681,1738983033093,-490.0,0.00010958,2]
[352185682,1738983033102,-500.0,0.00010958,2]
[352185683,1738983033111,-500.0,0.00010958,2]
[352185684,1738983033121,-503.70748233,0.00010958,2]
[352185685,1738983033130,-501.17990343,0.00010958,2]
[352185686,1738983033139,-501.45163344,0.00010958,2]
[352185687,1738983033149,-500.0,0.00010958,2]
[352185688,1738983033161,-500.0,0.00010958,2]
[352185689,1738983033170,-500.0,0.00010958,2]
[352185690,1738983033180,-539.58,0.00010958,2]
[352185691,1738983033190,-500.71664574,0.00010958,2]
[352185692,1738983033199,-500.0,0.00010958,2]
[352185693,1738983033208,-500.0,0.00010958,2]
[352185694,1738983033217,-500.0,0.00010958,2]
[352185695,1738983033227,-506.79070446,0.00010958,2]
[352185696,1738983033237,-500.0,0.00010958,2]
[352185697,1738983033247,-580.47,0.00010958,2]
[352185698,1738983033256,-500.0,0.00010958,2]
[352185699,1738983033265,-506.64571154,0.00010958,2]
[352185700,1738983033274,-500.0,0.00010958,2]
[352185701,1738983033283,-500.0,0.00010958,2]
[352185702,1738983033293,-502.13873826,0.00010958,2]
[352185703,1738983033302,-500.0,0.00010958,2]
[352185704,1738983033311,-502.73076826,0.00010958,2]
[352185705,1738983033320,-500.0,0.00010958,2]
[352185706,1738983033330,-501.22874423,0.00010958,2]
[352185707,1738983033339,-500.0,0.00010958,2]
[352185708,1738983033349,-500.0,0.00010958,2]
[352185709,1738983033358,-500.0,0.00010958,2]
[352185710,1738983033368,-500.0,0.00010958,2]
[352185711,1738983033377,-246.83672256,0.00010958,2]
[352185712,1738983033387,-500.0,0.00010958,2]
[352185713,1738983033396,-505.12124078,0.00010958,2]
[352185714,1738983033405,-500.0,0.00010958,2]
[352185715,1738983033416,-372.45097602,0.00010958,2]
[352185716,1738983033425,-500.0,0.00010958,2]
[352185717,1738983033435,-500.0,0.00010958,2]
[352185718,1738983033444,-500.0,0.00010958,2]
[352185719,1738983033453,-500.0,0.00010958,2]
[352185720,1738983033463,-502.63239777,0.00010958,2]
[352185721,1738983033472,-500.0,0.00010958,2]
[352185722,1738983033481,-501.32474235,0.00010958,2]
[352185723,1738983033491,-502.16310251,0.00010958,2]
[352185724,1738983033500,-500.0,0.00010958,2]
[352185725,1738983033510,-500.0,0.00010958,2]
[352185726,1738983033519,-500.0,0.00010958,2]
[352185727,1738983033529,-500.0,0.00010958,2]
[352185728,1738983033539,-500.0,0.00010958,2]
[352185729,1738983033548,-502.28535232,0.00010958,2]
[352185730,1738983033557,-726.76,0.00010958,2]
[352185731,1738983033567,-500.0,0.00010958,2]
[352185732,1738983033576,-501.19701323,0.00010958,2]
[352185733,1738983033585,-500.0,0.00010958,2]
[352185734,1738983033594,-500.0,0.00010958,2]
[352185735,1738983033604,-441.44472147,0.00010958,2]
[352185736,1738983033613,-500.82649215,0.00010958,2]
[352185737,1738983033622,-501.82810835,0.00010958,2]
[352185738,1738983033632,-501.37829191,0.00010958,2]
[352185739,1738983033641,-547.88089591,0.00010958,2]
[352185740,1738983033651,-500.0,0.00010958,2]
[352185741,1738983033660,-500.0,0.00010958,2]
[352185742,1738983033669,-500.0,0.00010958,2]
[352185743,1738983033679,-500.0,0.00010958,2]
[352185744,1738983033690,-500.0,0.00010958,2]
[352185745,1738983033699,-521.77063219,0.00010958,2]
[352185746,1738983033709,-500.0,0.00010958,2]
[352185747,1738983033718,-500.32086417,0.00010958,2]
[352185748,1738983033727,-500.0,0.00010958,2]
[352185749,1738983033736,-500.0,0.00010958,2]
[352185750,1738983033746,-500.0,0.00010958,2]
[352185751,1738983033755,-500.0,0.00010958,2]
[352185752,1738983033764,-502.34972874,0.00010958,2]
[352185753,1738983033774,-500.0,0.00010958,2]
[352185754,1738983033783,-500.87310687,0.00010958,2]
[352185755,1738983033793,-500.0,0.00010958,2]
[352185756,1738983033802,-500.65683008,0.00010958,2]
[352185757,1738983033811,-651.62,0.00010958,2]
[352185758,1738983033821,-500.68728779,0.00010958,2]
[352185759,1738983033831,-500.0,0.00010958,2]
[352185760,1738983033841,-297.55561804,0.00010958,2]
[352185761,1738983033850,-500.0,0.00010958,2]
[352185762,1738983033859,-552.15,0.00010958,2]
[352185763,1738983033868,-894.03,0.00010958,2]
[352185764,1738983033877,-500.0,0.00010958,2]
[352185765,1738983033889,-500.0,0.00010958,2]
[352185766,1738983033898,-503.62832617,0.00010958,2]
[352185767,1738983033908,-503.61425681,0.00010958,2]
[352185768,1738983033917,-500.0,0.00010958,2]
[352185769,1738983033927,-500.0,0.00010958,2]
[352185770,1738983033937,-503.75060664,0.00010958,2]
[352185771,1738983033947,-500.0,0.00010958,2]
[352185772,1738983033957,-500.0,0.00010958,2]
[352185773,1738983033967,-500.0,0.00010958,2]
[352185774,1738983033976,-500.86749186,0.00010958,2]
[352185775,1738983033986,-500.0,0.00010958,2]
[352185776,1738983033995,-500.0,0.00010958,2]
[352185777,1738983034005,-500.0,0.00010958,2]
[352185778,1738983034015,-501.94375795,0.00010958,2]
[352185779,1738983034025,-354.44294073,0.00010958,2]
[352185780,1738983034034,-500.0,0.00010958,2]
[352185781,1738983034044,-501.14548833,0.00010958,2]
[352185782,1738983034053,-501.17974086,0.00010958,2]
[352185783,1738983034062,-500.0,0.00010958,2]
[352185784,1738983034071,-500.0,0.00010958,2]
[352185785,1738983034081,-500.0,0.00010958,2]
[352185786,1738983034090,-500.0,0.00010958,2]
[352185787,1738983034100,-500.0,0.00010958,2]
[352185788,1738983034109,-500.74654377,0.00010958,2]
[352185789,1738983034118,-1208.7,0.00010958,2]
[352185790,1738983034128,-648.02,0.00010958,2]
[352185791,1738983034137,-648.02,0.00010958,2]
[352185792,1738983034146,-648.02,0.00010958,2]
[352185793,1738983034158,-648.02,0.00010958,2]
[352185794,1738983034168,-648.02,0.00010958,2]
[352185795,1738983034178,-648.02,0.00010958,2]
[352185796,1738983034188,-648.02,0.00010958,2]
[352185797,1738983034199,-648.02,0.00010958,2]
[352185798,1738983034208,-648.02,0.00010958,2]
[352185799,1738983034218,-648.02,0.00010958,2]
[352185800,1738983034228,-648.02,0.00010958,2]
[352185801,1738983034238,-502.70625843,0.00010958,2]
[352185802,1738983034248,-648.02,0.00010958,2]
[352185803,1738983034257,-648.02,0.00010958,2]
[352185804,1738983034267,-648.02,0.00010958,2]
[352185805,1738983034277,-648.02,0.00010958,2]
[352185806,1738983034287,-648.02,0.00010958,2]
[352185807,1738983034298,-648.02,0.00010958,2]
[352185808,1738983034309,-648.02,0.00010958,2]
[352185809,1738983034319,-648.02,0.00010958,2]
[352185810,1738983034329,-648.02,0.00010958,2]
[352185811,1738983034339,-500.0,0.00010958,2]
[352185812,1738983034349,-648.02,0.00010958,2]
[352185813,1738983034359,-648.02,0.00010958,2]
[352185814,1738983034369,-648.02,0.00010958,2]
[352185815,1738983034379,-648.09702859,0.00010958,2]
[352185816,1738983034389,-1190.01,0.00010958,2]
[352185817,1738983034399,-893.44,0.00010958,2]
[352185818,1738983034408,-501.0235752,0.00010958,2]
[352185819,1738983034423,-501.4865438,0.00010958,2]
[352185820,1738983034432,-501.69670012,0.00010958,2]
[352185821,1738983034442,-500.0,0.00010958,2]
[352185822,1738983034451,-500.0,0.00010958,2]
[352185823,1738983034461,-503.98169376,0.00010958,2]
[352185824,1738983034470,-501.9078771,0.00010958,2]
[352185825,1738983034480,-500.0,0.00010958,2]
[352185826,1738983034489,-550.35107339,0.00010958,2]
[352185827,1738983034499,-500.0,0.00010958,2]
[352185828,1738983034509,-500.0,0.00010958,2]
[352185829,1738983034519,-500.0,0.00010958,2]
[352185830,1738983034529,-500.0,0.00010958,2]
[352185831,1738983034538,-503.39856001,0.00010958,2]
[352185832,1738983034547,-503.56339088,0.00010958,2]
[352185833,1738983034556,-500.0,0.00010958,2]
[352185834,1738983034566,-558.21121813,0.00010958,2]
[352185835,1738983034575,-500.0,0.00010958,2]
[352185836,1738983034584,-500.0,0.00010958,2]
[352185837,1738983034594,-500.0,0.00010958,2]
[352185838,1738983034603,-500.0,0.00010958,2]
[352185839,1738983034613,-500.0,0.00010958,2]
[352185840,1738983034622,-500.0,0.00010958,2]
[352185841,1738983034636,-500.0,0.00010958,2]
[352185842,1738983034647,-500.0,0.00010958,2]
[352185843,1738983034656,-500.0,0.00010958,2]
[352185844,1738983034668,-500.0,0.00010958,2]
[352185845,1738983034677,-504.01903622,0.00010958,2]
[352185846,1738983034687,-500.0,0.00010958,2]
[352185847,1738983034697,-500.83654551,0.00010958,2]
[352185848,1738983034706,-501.18437889,0.00010958,2]
[352185849,1738983034715,-500.0,0.00010958,2]
[352185850,1738983034725,-504.29429378,0.00010958,2]
[352185851,1738983034739,-500.0,0.00010958,2]
[352185852,1738983034748,-500.0,0.00010958,2]
[352185853,1738983034757,-500.0,0.00010958,2]
[352185854,1738983034766,-500.0,0.00010958,2]
[352185855,1738983034776,-500.0,0.00010958,2]
[352185856,1738983034785,-503.03256543,0.00010958,2]
[352185857,1738983034794,-500.0,0.00010958,2]
[352185858,1738983034804,-500.0,0.00010958,2]
[352185859,1738983034813,-500.37701116,0.00010958,2]
[352185860,1738983034823,-500.0,0.00010958,2]
[352185861,1738983034832,-500.0,0.00010958,2]
[352185862,1738983034843,-500.0,0.00010958,2]
[352185863,1738983034852,-500.0,0.00010958,2]
[352185864,1738983034862,-563.96,0.00010958,2]
[352185865,1738983034871,-500.0,0.00010958,2]
[352185866,1738983034882,-500.0,0.00010958,2]
[352185867,1738983034891,-162.11473828,0.00010958,2]
[352185868,1738983034900,-500.0,0.00010958,2]
[352185869,1738983034911,-500.73963493,0.00010958,2]
[352185870,1738983034920,-500.0,0.00010958,2]
[352185871,1738983034932,-500.0,0.00010958,2]
[352185872,1738983034943,-500.0,0.00010958,2]
[352185873,1738983034952,-500.0,0.00010958,2]
[352185874,1738983034961,-500.81054377,0.00010958,2]
[352185875,1738983034971,-500.0,0.00010958,2]
[352185876,1738983034980,-503.3403028,0.00010958,2]
[352185877,1738983034989,-589.14,0.00010958,2]
[352185878,1738983034998,-500.7551954,0.00010958,2]
[352185879,1738983035007,-502.66859875,0.00010958,2]
[352185880,1738983035016,-501.98519877,0.00010958,2]
[352185881,1738983035026,-500.0,0.00010958,2]
[352185882,1738983035035,-501.29371872,0.00010958,2]
[352185883,1738983035044,-500.0,0.00010958,2]
[352185884,1738983035053,-500.0,0.00010958,2]
[352185885,1738983035063,-564.50971201,0.00010958,2]
[352185886,1738983035072,-500.0,0.00010958,2]
[352185887,1738983035081,-502.62151394,0.00010958,2]
[352185888,1738983035090,-500.0,0.00010958,2]
[352185889,1738983035099,-500.0,0.00010958,2]
[352185890,1738983035109,-500.0,0.00010958,2]
[352185891,1738983035118,-1228.02,0.00010958,2]
[352185892,1738983035128,-543.83037255,0.00010958,2]
[352185893,1738983035137,-500.0,0.00010958,2]
[352185894,1738983035148,-500.0,0.00010958,2]
[352185895,1738983035161,-386.98733038,0.00010958,2]
[352185896,1738983035170,-500.0,0.00010958,2]
[352185897,1738983035179,-500.0,0.00010958,2]
[352185898,1738983035189,-500.0,0.00010958,2]
[352185899,1738983035201,-500.0,0.00010958,2]
[352185900,1738983035212,-500.0,0.00010958,2]
[352185901,1738983035221,-500.0,0.00010958,2]
[352185902,1738983035233,-500.0,0.00010958,2]
[352185903,1738983035243,-500.0,0.00010958,2]
[352185904,1738983035252,-500.0,0.00010958,2]
[352185905,1738983035261,-500.0,0.00010958,2]
[352185906,1738983035269,-500.0,0.00010958,2]
[352185907,1738983035279,-500.0,0.00010958,2]
[352185908,1738983035288,-500.0,0.00010958,2]
[352185909,1738983035297,-500.0,0.00010958,2]
[352185910,1738983035306,-500.0,0.00010958,2]
[352185911,1738983035315,-500.0,0.00010958,2]
[352185912,1738983035324,-500.0,0.00010958,2]
[352185913,1738983035333,-500.0,0.00010958,2]
[352185914,1738983035342,-500.0,0.00010958,2]
[352185915,1738983035351,-500.0,0.00010958,2]
[352185916,1738983035361,-500.0,0.00010958,2]
[352185917,1738983035370,-500.0,0.00010958,2]
[352185918,1738983035379,-500.0,0.00010958,2]
[352185919,1738983035389,-500.0,0.00010958,2]
[352185920,1738983035399,-318.45448542,0.00010958,2]
[352185921,1738983035408,-502.43190348,0.00010958,2]
[352185922,1738983035420,-500.0,0.00010958,2]
[352185923,1738983035430,-502.66568798,0.00010958,2]
[352185924,1738983035439,-500.0,0.00010958,2]
[352185925,1738983035448,-500.0,0.00010958,2]
[352185926,1738983035457,-500.0,0.00010958,2]
[352185927,1738983035467,-500.0,0.00010958,2]
[352185928,1738983035477,-529.2715999,0.00010958,2]
[352185929,1738983035487,-500.0,0.00010958,2]
[352185930,1738983035496,-500.0,0.00010958,2]
[352185931,1738983035507,-500.0,0.00010958,2]
[352185932,1738983035518,-339.92607179,0.00010958,2]
[352185933,1738983035527,-500.0,0.00010958,2]
[352185934,1738983035537,-504.43043162,0.00010958,2]
[352185935,1738983035546,-500.0,0.00010958,2]
[352185936,1738983035555,-500.0,0.00010958,2]
[352185937,1738983035565,-500.0,0.00010958,2]
[352185938,1738983035574,-500.0,0.00010958,2]
[352185939,1738983035584,-500.0,0.00010958,2]
[352185940,1738983035594,-500.0,0.00010958,2]
[352185941,1738983035603,-504.58823675,0.00010958,2]
[352185942,1738983035613,-500.0,0.00010958,2]
[352185943,1738983035622,-500.0,0.00010958,2]
[352185944,1738983035631,-500.0,0.00010958,2]
[352185945,1738983035640,-500.0,0.00010958,2]
[352185946,1738983035650,-7634.36,0.00010958,2]
[352185947,1738983035662,-500.20993001,0.00010958,2]
[352185948,1738983035672,-500.0,0.00010958,2]
[352185949,1738983035682,-501.26693529,0.00010958,2]
[352185950,1738983035691,-500.0,0.00010958,2]